[Event "Betsys MČR v online bleskovém šachu 2021"]
[Site "Chess.com"]
[Date "2021.04.17"]
[Round "5"]
[White "valid88"]
[Black "Petr_Zacek"]
[Result "0-1"]
[WhiteElo "1336"]
[BlackElo "1766"]
[TimeControl "180+1"]
[EndTime "9:47:03 PDT"]
[Termination "Uživatel Petr_Zacek zvítězil matem"]

1. d4 {[%clk 0:03:00.9]} 1... d5 {[%clk 0:02:56]} 2. c4 {[%clk 0:03:00.8]} 2...
e6 {[%clk 0:02:56]} 3. Nc3 {[%clk 0:03:00.3]} 3... Nf6 {[%clk 0:02:52.5]} 4. Nf3
{[%clk 0:03:00]} 4... Nbd7 {[%clk 0:02:50]} 5. Bg5 {[%clk 0:02:58.5]} 5... c6
{[%clk 0:02:49.9]} 6. e3 {[%clk 0:02:58.4]} 6... Qa5 {[%clk 0:02:49.2]} 7. Be2
{[%clk 0:02:52.1]} 7... Ne4 {[%clk 0:02:44.8]} 8. Qc2 {[%clk 0:02:46.4]} 8...
Bb4 {[%clk 0:02:36.9]} 9. Rc1 {[%clk 0:02:44.5]} 9... O-O {[%clk 0:02:22.6]} 10.
O-O {[%clk 0:02:43.1]} 10... Nxg5 {[%clk 0:02:18]} 11. Nxg5 {[%clk 0:02:41.7]}
11... Nf6 {[%clk 0:02:17.8]} 12. c5 {[%clk 0:02:31.6]} 12... Bxc3 {[%clk
0:02:15.6]} 13. Qxc3 {[%clk 0:02:30.4]} 13... Qc7 {[%clk 0:02:11.9]} 14. b4
{[%clk 0:02:28.1]} 14... Re8 {[%clk 0:02:09.6]} 15. Qc2 {[%clk 0:02:27.3]} 15...
e5 {[%clk 0:02:08.3]} 16. Rfe1 {[%clk 0:02:10.7]} 16... e4 {[%clk 0:02:06.7]}
17. a4 {[%clk 0:01:55]} 17... a6 {[%clk 0:02:05.7]} 18. b5 {[%clk 0:01:52.9]}
18... axb5 {[%clk 0:02:05]} 19. axb5 {[%clk 0:01:53]} 19... Bg4 {[%clk
0:02:02.6]} 20. Bxg4 {[%clk 0:01:34.8]} 20... Nxg4 {[%clk 0:02:02]} 21. g3
{[%clk 0:01:29.9]} 21... Qe7 {[%clk 0:01:53.1]} 22. Nh3 {[%clk 0:01:26.8]} 22...
Qf6 {[%clk 0:01:46.5]} 23. Nf4 {[%clk 0:01:22.4]} 23... g5 {[%clk 0:01:43.5]}
24. Qe2 {[%clk 0:01:13.4]} 24... Nh6 {[%clk 0:01:11.2]} 25. Nh3 {[%clk
0:01:04.3]} 25... Ra5 {[%clk 0:00:59.7]} 26. bxc6 {[%clk 0:01:02.9]} 26... bxc6
{[%clk 0:00:59]} 27. Qh5 {[%clk 0:00:53]} 27... g4 {[%clk 0:00:52.3]} 28. Nf4
{[%clk 0:00:47]} 28... Rea8 {[%clk 0:00:42.1]} 29. Rb1 {[%clk 0:00:41]} 29...
R8a6 {[%clk 0:00:32.2]} 30. Rb8+ {[%clk 0:00:27.8]} 30... Kg7 {[%clk 0:00:31.4]}
31. Ng2 {[%clk 0:00:17.3]} 31... Ra2 {[%clk 0:00:24.6]} 32. Rbb1 {[%clk
0:00:16.7]} 32... Qxf2+ {[%clk 0:00:21.7]} 33. Kh1 {[%clk 0:00:15.6]} 33...
Qxg2# {[%clk 0:00:21.5]} 0-1

[Event "Betsys MČR v online bleskovém šachu 2021"]
[Site "Chess.com"]
[Date "2021.04.17"]
[Round "5"]
[White "Vesselovsky52"]
[Black "Innerz98"]
[Result "1-0"]
[WhiteElo "2327"]
[BlackElo "2106"]
[TimeControl "180+1"]
[EndTime "9:47:04 PDT"]
[Termination "Uživatel Vesselovsky52 zvítězil po vzdání soupeře"]

1. e4 {[%clk 0:03:00.8]} 1... e5 {[%clk 0:02:59.9]} 2. Nc3 {[%clk 0:02:58.5]}
2... Nf6 {[%clk 0:02:59.6]} 3. Nf3 {[%clk 0:02:56.9]} 3... Bb4 {[%clk
0:02:59.6]} 4. Nxe5 {[%clk 0:02:54.1]} 4... Qe7 {[%clk 0:02:57.5]} 5. Nd3 {[%clk
0:02:49.9]} 5... Bxc3 {[%clk 0:02:35]} 6. dxc3 {[%clk 0:02:46.6]} 6... Nxe4
{[%clk 0:02:35.2]} 7. Be2 {[%clk 0:02:45.3]} 7... O-O {[%clk 0:02:34.6]} 8. O-O
{[%clk 0:02:45]} 8... Nf6 {[%clk 0:02:34.6]} 9. Re1 {[%clk 0:02:43.2]} 9... d5
{[%clk 0:02:30.9]} 10. Bg5 {[%clk 0:02:40.4]} 10... Qd6 {[%clk 0:02:25.5]} 11.
Bf3 {[%clk 0:02:34.8]} 11... c6 {[%clk 0:02:24.3]} 12. Qd2 {[%clk 0:02:24.2]}
12... Bf5 {[%clk 0:02:23.2]} 13. Ne5 {[%clk 0:02:17.9]} 13... Nbd7 {[%clk
0:02:18.1]} 14. Bf4 {[%clk 0:02:10.1]} 14... Nxe5 {[%clk 0:02:13.8]} 15. Rxe5
{[%clk 0:01:59.8]} 15... Qd7 {[%clk 0:02:13.3]} 16. Rae1 {[%clk 0:01:55.3]}
16... Rfe8 {[%clk 0:02:08.3]} 17. h3 {[%clk 0:01:49.1]} 17... Ne4 {[%clk
0:02:01.4]} 18. Bxe4 {[%clk 0:01:43.6]} 18... dxe4 {[%clk 0:01:50.6]} 19. Qxd7
{[%clk 0:01:39.9]} 19... Bxd7 {[%clk 0:01:48]} 20. R1xe4 {[%clk 0:01:37.4]}
20... Be6 {[%clk 0:01:48.1]} 21. Re1 {[%clk 0:01:30.7]} 21... Red8 {[%clk
0:01:44.8]} 22. b3 {[%clk 0:01:29.7]} 22... Rd7 {[%clk 0:01:43.3]} 23. c4 {[%clk
0:01:24.4]} 23... a5 {[%clk 0:01:31.2]} 24. a4 {[%clk 0:01:20.6]} 24... b6
{[%clk 0:01:23.6]} 25. c5 {[%clk 0:01:15.3]} 25... b5 {[%clk 0:01:11.9]} 26.
axb5 {[%clk 0:01:13.1]} 26... cxb5 {[%clk 0:01:12.8]} 27. c6 {[%clk 0:01:12.5]}
27... Rd4 {[%clk 0:01:01]} 28. Be3 {[%clk 0:01:00]} 28... Rd6 {[%clk 0:01:00]}
29. Rc5 {[%clk 0:00:54.1]} 29... Rc8 {[%clk 0:00:53.5]} 30. c7 {[%clk
0:00:47.1]} 30... a4 {[%clk 0:00:41.2]} 31. Bf4 {[%clk 0:00:43.1]} 31... Rd7
{[%clk 0:00:28.8]} 32. Rxb5 {[%clk 0:00:40.8]} 32... axb3 {[%clk 0:00:28.2]} 33.
cxb3 {[%clk 0:00:37.6]} 33... Rd4 {[%clk 0:00:16.1]} 34. Rb8 {[%clk 0:00:36.8]}
34... Kf8 {[%clk 0:00:09.7]} 35. Rxe6 {[%clk 0:00:35.7]} 1-0

[Event "Betsys MČR v online bleskovém šachu 2021"]
[Site "Chess.com"]
[Date "2021.04.17"]
[Round "5"]
[White "Sorcercream"]
[Black "polik1112"]
[Result "1/2-1/2"]
[WhiteElo "984"]
[BlackElo "1325"]
[TimeControl "180+1"]
[EndTime "9:47:04 PDT"]
[Termination "Remíza opakováním pozice"]

1. e4 {[%clk 0:03:00.9]} 1... e6 {[%clk 0:02:59.7]} 2. d4 {[%clk 0:02:59.6]}
2... d5 {[%clk 0:02:59.6]} 3. e5 {[%clk 0:02:59.5]} 3... c5 {[%clk 0:02:59.5]}
4. Nf3 {[%clk 0:02:58.1]} 4... Qb6 {[%clk 0:02:57.5]} 5. b3 {[%clk 0:02:56.4]}
5... Nc6 {[%clk 0:02:53.6]} 6. Bb2 {[%clk 0:02:55.5]} 6... Bd7 {[%clk
0:02:48.2]} 7. c3 {[%clk 0:02:46.5]} 7... cxd4 {[%clk 0:02:42.6]} 8. cxd4 {[%clk
0:02:44.2]} 8... Bb4+ {[%clk 0:02:28]} 9. Nbd2 {[%clk 0:02:32.4]} 9... Nh6
{[%clk 0:02:23.4]} 10. Be2 {[%clk 0:02:20.8]} 10... Nf5 {[%clk 0:02:21.4]} 11.
a3 {[%clk 0:02:18.4]} 11... Be7 {[%clk 0:02:19.7]} 12. Nb1 {[%clk 0:01:58.3]}
12... f6 {[%clk 0:02:13.5]} 13. exf6 {[%clk 0:01:56.7]} 13... Bxf6 {[%clk
0:02:12.8]} 14. O-O {[%clk 0:01:54.5]} 14... Nfxd4 {[%clk 0:02:10.5]} 15. Nxd4
{[%clk 0:01:50.6]} 15... Nxd4 {[%clk 0:02:10.2]} 16. Bh5+ {[%clk 0:01:35]} 16...
g6 {[%clk 0:01:51.4]} 17. Bg4 {[%clk 0:01:28.9]} 17... h5 {[%clk 0:01:49.8]} 18.
Bh3 {[%clk 0:01:21.8]} 18... Rf8 {[%clk 0:01:36.2]} 19. g3 {[%clk 0:01:19.5]}
19... Qxb3 {[%clk 0:01:34.6]} 20. Bxd4 {[%clk 0:01:13.7]} 20... Qxd1 {[%clk
0:01:24.8]} 21. Rxd1 {[%clk 0:01:13.4]} 21... e5 {[%clk 0:01:13.7]} 22. Bxd7+
{[%clk 0:01:10.9]} 22... Kxd7 {[%clk 0:01:13.4]} 23. Bb2 {[%clk 0:01:02.2]}
23... Ke6 {[%clk 0:01:07.5]} 24. Nd2 {[%clk 0:00:55.1]} 24... e4 {[%clk
0:00:46.1]} 25. Bxf6 {[%clk 0:00:52.8]} 25... Rxf6 {[%clk 0:00:46.4]} 26. Nb3
{[%clk 0:00:49.8]} 26... Raf8 {[%clk 0:00:44.3]} 27. Ra2 {[%clk 0:00:45.4]}
27... b6 {[%clk 0:00:33.2]} 28. Rc2 {[%clk 0:00:39.3]} 28... Kd6 {[%clk
0:00:28]} 29. Nd4 {[%clk 0:00:36.4]} 29... Ke5 {[%clk 0:00:11]} 30. Nc6+ {[%clk
0:00:29]} 30... Kd6 {[%clk 0:00:09.3]} 31. Nd4 {[%clk 0:00:27.9]} 31... Ke5
{[%clk 0:00:09]} 32. Nc6+ {[%clk 0:00:27.2]} 32... Kd6 {[%clk 0:00:09]} 33. Nd4
{[%clk 0:00:26.5]} 1/2-1/2

[Event "Betsys MČR v online bleskovém šachu 2021"]
[Site "Chess.com"]
[Date "2021.04.17"]
[Round "5"]
[White "PaulS_CR"]
[Black "KJ327NR"]
[Result "0-1"]
[WhiteElo "1852"]
[BlackElo "2316"]
[TimeControl "180+1"]
[EndTime "9:47:05 PDT"]
[Termination "Uživatel KJ327NR zvítězil na čas"]

1. Nf3 {[%clk 0:02:58.2]} 1... Nf6 {[%clk 0:02:59.5]} 2. e3 {[%clk 0:02:56.3]}
2... g6 {[%clk 0:02:58.9]} 3. b3 {[%clk 0:02:55.9]} 3... Bg7 {[%clk 0:02:59.8]}
4. Bb2 {[%clk 0:02:55.8]} 4... O-O {[%clk 0:03:00.4]} 5. Be2 {[%clk 0:02:53.2]}
5... b6 {[%clk 0:02:59.5]} 6. c4 {[%clk 0:02:52]} 6... Bb7 {[%clk 0:02:59.2]} 7.
d4 {[%clk 0:02:51.5]} 7... d6 {[%clk 0:02:56.1]} 8. Nbd2 {[%clk 0:02:49.2]} 8...
Nbd7 {[%clk 0:02:56]} 9. O-O {[%clk 0:02:46.5]} 9... e5 {[%clk 0:02:53.6]} 10.
dxe5 {[%clk 0:02:38.7]} 10... Ng4 {[%clk 0:02:53.3]} 11. h3 {[%clk 0:02:35.8]}
11... Ngxe5 {[%clk 0:02:53.1]} 12. Nxe5 {[%clk 0:02:35.4]} 12... Nxe5 {[%clk
0:02:53]} 13. Qc2 {[%clk 0:02:28.3]} 13... Qe7 {[%clk 0:02:50.9]} 14. Rae1
{[%clk 0:02:20.2]} 14... Rfe8 {[%clk 0:02:44.9]} 15. Bc3 {[%clk 0:02:09.2]}
15... a5 {[%clk 0:02:43.2]} 16. a4 {[%clk 0:02:07.1]} 16... Rad8 {[%clk
0:02:36]} 17. Nf3 {[%clk 0:01:54.9]} 17... Nxf3+ {[%clk 0:02:34.8]} 18. Bxf3
{[%clk 0:01:54.3]} 18... Bxf3 {[%clk 0:02:30]} 19. gxf3 {[%clk 0:01:53.7]} 19...
Qg5+ {[%clk 0:02:29]} 20. Kh2 {[%clk 0:01:52.8]} 20... Bxc3 {[%clk 0:02:21.7]}
21. Qxc3 {[%clk 0:01:51.7]} 21... Qh5 {[%clk 0:02:21.8]} 22. f4 {[%clk
0:01:47.4]} 22... Qf3 {[%clk 0:02:12.2]} 23. Rd1 {[%clk 0:01:36.7]} 23... Re4
{[%clk 0:01:58.6]} 24. Qd2 {[%clk 0:01:27.5]} 24... Rde8 {[%clk 0:01:55.2]} 25.
Rg1 {[%clk 0:01:25.4]} 25... Rxf4 {[%clk 0:01:35]} 26. Rg2 {[%clk 0:00:57.2]}
26... Rf5 {[%clk 0:01:27.5]} 27. Rdg1 {[%clk 0:00:43]} 27... Re4 {[%clk
0:01:15.7]} 28. Qd1 {[%clk 0:00:28.9]} 28... Rh4 {[%clk 0:01:00.3]} 29. Qxf3
{[%clk 0:00:26.4]} 29... Rxf3 {[%clk 0:01:00.1]} 30. Rg3 {[%clk 0:00:17]} 30...
Rxf2+ {[%clk 0:00:59.8]} 31. R1g2 {[%clk 0:00:15.2]} 31... Rxg2+ {[%clk
0:00:59.7]} 32. Kxg2 {[%clk 0:00:14.9]} 32... Re4 {[%clk 0:00:59.4]} 33. Kf3
{[%clk 0:00:14.6]} 33... f5 {[%clk 0:00:59.1]} 34. Rg1 {[%clk 0:00:13.6]} 34...
Kf7 {[%clk 0:00:58.7]} 35. Rd1 {[%clk 0:00:12.5]} 35... Ke6 {[%clk 0:00:56.1]}
36. Rd2 {[%clk 0:00:11]} 36... Kd7 {[%clk 0:00:51.8]} 37. Rh2 {[%clk 0:00:07.3]}
37... Kc6 {[%clk 0:00:50.1]} 0-1

[Event "Betsys MČR v online bleskovém šachu 2021"]
[Site "Chess.com"]
[Date "2021.04.17"]
[Round "5"]
[White "RunningPawnz88"]
[Black "p_kana"]
[Result "0-1"]
[WhiteElo "1340"]
[BlackElo "1790"]
[TimeControl "180+1"]
[EndTime "9:47:05 PDT"]
[Termination "Uživatel p_kana zvítězil po vzdání soupeře"]

1. d4 {[%clk 0:03:00.9]} 1... Nf6 {[%clk 0:02:57.1]} 2. c4 {[%clk 0:03:00.6]}
2... c6 {[%clk 0:02:56]} 3. Nc3 {[%clk 0:02:59.3]} 3... d5 {[%clk 0:02:55.9]} 4.
e3 {[%clk 0:02:57.9]} 4... a6 {[%clk 0:02:54.9]} 5. Bd3 {[%clk 0:02:56.9]} 5...
b5 {[%clk 0:02:54.2]} 6. cxb5 {[%clk 0:02:56.1]} 6... cxb5 {[%clk 0:02:52.5]} 7.
Nf3 {[%clk 0:02:55.4]} 7... Bg4 {[%clk 0:02:48.1]} 8. O-O {[%clk 0:02:51.9]}
8... e6 {[%clk 0:02:47.7]} 9. e4 {[%clk 0:02:48.4]} 9... dxe4 {[%clk 0:02:42.7]}
10. Nxe4 {[%clk 0:02:47.7]} 10... Be7 {[%clk 0:02:26.4]} 11. Bf4 {[%clk
0:02:32.1]} 11... Nd5 {[%clk 0:02:19.4]} 12. Bg3 {[%clk 0:02:30]} 12... O-O
{[%clk 0:02:18.9]} 13. Qe2 {[%clk 0:02:17.7]} 13... Nc6 {[%clk 0:02:10.4]} 14.
Rfc1 {[%clk 0:02:12]} 14... Nxd4 {[%clk 0:02:06.9]} 15. Qf1 {[%clk 0:02:04.1]}
15... Nxf3+ {[%clk 0:01:58.7]} 16. gxf3 {[%clk 0:02:03]} 16... Bxf3 {[%clk
0:01:58.7]} 17. Qh3 {[%clk 0:01:46.6]} 17... f5 {[%clk 0:01:52.1]} 18. Nc5
{[%clk 0:01:34.6]} 18... Rf6 {[%clk 0:01:37.6]} 19. Be5 {[%clk 0:01:28.2]} 19...
Rg6+ {[%clk 0:01:35.7]} 20. Kf1 {[%clk 0:01:26.8]} 20... Bg2+ {[%clk 0:01:32.8]}
21. Qxg2 {[%clk 0:01:19.9]} 21... Rxg2 {[%clk 0:01:32.5]} 22. Kxg2 {[%clk
0:01:20.2]} 22... Bxc5 {[%clk 0:01:31.1]} 23. Rxc5 {[%clk 0:01:18.7]} 23... Qg5+
{[%clk 0:01:21.8]} 24. Kh1 {[%clk 0:01:10.9]} 24... f4 {[%clk 0:01:10.7]} 25.
Bd4 {[%clk 0:00:57.1]} 25... Rd8 {[%clk 0:00:54.9]} 26. Rg1 {[%clk 0:00:53.6]}
26... Qh5 {[%clk 0:00:47.5]} 27. Rxg7+ {[%clk 0:00:47.4]} 27... Kf8 {[%clk
0:00:46.2]} 28. Rg2 {[%clk 0:00:35.4]} 28... Qd1+ {[%clk 0:00:43.6]} 29. Rg1
{[%clk 0:00:26.2]} 29... Qxd3 {[%clk 0:00:42.2]} 30. Bg7+ {[%clk 0:00:23]} 30...
Ke7 {[%clk 0:00:32.8]} 31. Bh6 {[%clk 0:00:17.5]} 31... Qf3+ {[%clk 0:00:31.3]}
32. Rg2 {[%clk 0:00:16.6]} 32... Rg8 {[%clk 0:00:29.8]} 0-1

[Event "Betsys MČR v online bleskovém šachu 2021"]
[Site "Chess.com"]
[Date "2021.04.17"]
[Round "5"]
[White "AJedlicka"]
[Black "Filipdol"]
[Result "1-0"]
[WhiteElo "2201"]
[BlackElo "1877"]
[TimeControl "180+1"]
[EndTime "9:47:06 PDT"]
[Termination "Uživatel AJedlicka zvítězil po vzdání soupeře"]

1. d4 {[%clk 0:02:59]} 1... Nf6 {[%clk 0:03:00]} 2. c4 {[%clk 0:02:58.5]} 2...
g6 {[%clk 0:03:00.5]} 3. Nc3 {[%clk 0:02:56.8]} 3... Bg7 {[%clk 0:03:01.1]} 4.
e4 {[%clk 0:02:56.1]} 4... d6 {[%clk 0:03:01.3]} 5. Nf3 {[%clk 0:02:51.1]} 5...
O-O {[%clk 0:03:00.3]} 6. Be2 {[%clk 0:02:48.5]} 6... e5 {[%clk 0:03:00.1]} 7.
Be3 {[%clk 0:02:47.4]} 7... Nc6 {[%clk 0:02:58.3]} 8. d5 {[%clk 0:02:46.7]} 8...
Ne7 {[%clk 0:02:58.4]} 9. Nd2 {[%clk 0:02:46]} 9... c6 {[%clk 0:02:49.6]} 10.
O-O {[%clk 0:02:42.1]} 10... cxd5 {[%clk 0:02:47.9]} 11. cxd5 {[%clk 0:02:41]}
11... a6 {[%clk 0:02:48]} 12. a4 {[%clk 0:02:40.1]} 12... Bd7 {[%clk 0:02:45.5]}
13. a5 {[%clk 0:02:37.8]} 13... Ne8 {[%clk 0:02:20.4]} 14. Nc4 {[%clk
0:02:36.5]} 14... Nc8 {[%clk 0:02:05.4]} 15. Qb3 {[%clk 0:02:32.2]} 15... Rb8
{[%clk 0:01:54.3]} 16. Nb6 {[%clk 0:02:24.3]} 16... Ne7 {[%clk 0:01:08]} 17.
Rac1 {[%clk 0:02:16.5]} 17... Nc7 {[%clk 0:00:59.4]} 18. Nca4 {[%clk 0:02:10.8]}
18... Bb5 {[%clk 0:00:51.3]} 19. Bxb5 {[%clk 0:02:05.6]} 19... Nxb5 {[%clk
0:00:49.2]} 20. Nc3 {[%clk 0:02:01.9]} 20... Nd4 {[%clk 0:00:45.6]} 21. Bxd4
{[%clk 0:02:01.5]} 21... exd4 {[%clk 0:00:46.5]} 22. Ne2 {[%clk 0:01:59.2]}
22... f5 {[%clk 0:00:45.7]} 23. exf5 {[%clk 0:01:56]} 23... Nxf5 {[%clk
0:00:44.9]} 24. Ng3 {[%clk 0:01:55.6]} 24... Nxg3 {[%clk 0:00:41.4]} 25. hxg3
{[%clk 0:01:55.2]} 25... Be5 {[%clk 0:00:32.4]} 26. f4 {[%clk 0:01:50.2]} 26...
Bg7 {[%clk 0:00:31.9]} 27. Rfe1 {[%clk 0:01:47.1]} 27... Re8 {[%clk 0:00:29.8]}
28. Qf3 {[%clk 0:01:39.1]} 28... Rxe1+ {[%clk 0:00:23.2]} 29. Rxe1 {[%clk
0:01:38.3]} 29... Qc7 {[%clk 0:00:18.8]} 30. Qg4 {[%clk 0:01:32.7]} 30... Rf8
{[%clk 0:00:17]} 31. Qe6+ {[%clk 0:01:31.6]} 31... Qf7 {[%clk 0:00:16.4]} 32.
Qxd6 {[%clk 0:01:28.6]} 32... d3 {[%clk 0:00:14.9]} 33. Qe6 {[%clk 0:01:22.5]}
33... Qxe6 {[%clk 0:00:14]} 34. dxe6 {[%clk 0:01:22]} 34... Bd4+ {[%clk
0:00:14.5]} 35. Kf1 {[%clk 0:01:19.8]} 35... Bxb6 {[%clk 0:00:14.9]} 36. axb6
{[%clk 0:01:18.7]} 36... Re8 {[%clk 0:00:15.5]} 37. Re3 {[%clk 0:01:15.1]} 37...
Kg7 {[%clk 0:00:13.5]} 38. Ke1 {[%clk 0:01:14.1]} 38... Kf6 {[%clk 0:00:13.8]}
39. Kd2 {[%clk 0:01:12.9]} 39... Rxe6 {[%clk 0:00:14.4]} 40. Rxe6+ {[%clk
0:01:12.3]} 40... Kxe6 {[%clk 0:00:14.9]} 41. Kxd3 {[%clk 0:01:11.7]} 41... Kd5
{[%clk 0:00:14.4]} 42. g4 {[%clk 0:01:11.1]} 42... Kc5 {[%clk 0:00:13.6]} 43. f5
{[%clk 0:01:09.3]} 43... gxf5 {[%clk 0:00:13.7]} 44. gxf5 {[%clk 0:01:09]} 44...
Kd5 {[%clk 0:00:13.9]} 45. g4 {[%clk 0:01:07.7]} 45... Ke5 {[%clk 0:00:14.2]}
46. Ke3 {[%clk 0:01:07.5]} 46... h5 {[%clk 0:00:13.1]} 47. gxh5 {[%clk
0:01:04.9]} 47... Kxf5 {[%clk 0:00:13.8]} 48. Kd4 {[%clk 0:01:04.4]} 48... Kg5
{[%clk 0:00:13.2]} 49. Kd5 {[%clk 0:01:02.9]} 1-0

[Event "Betsys MČR v online bleskovém šachu 2021"]
[Site "Chess.com"]
[Date "2021.04.17"]
[Round "5"]
[White "machonza"]
[Black "jachym08"]
[Result "0-1"]
[WhiteElo "1970"]
[BlackElo "2180"]
[TimeControl "180+1"]
[EndTime "9:47:06 PDT"]
[Termination "Uživatel jachym08 zvítězil po vzdání soupeře"]

1. e4 {[%clk 0:03:00.9]} 1... c5 {[%clk 0:02:58.3]} 2. Nf3 {[%clk 0:02:59.9]}
2... d6 {[%clk 0:02:58.5]} 3. c3 {[%clk 0:03:00]} 3... Nf6 {[%clk 0:02:56.3]} 4.
h3 {[%clk 0:02:59.4]} 4... Nc6 {[%clk 0:02:55]} 5. Bd3 {[%clk 0:02:59.1]} 5...
e5 {[%clk 0:02:43.5]} 6. Bc2 {[%clk 0:02:57.8]} 6... c4 {[%clk 0:02:38.5]} 7.
Na3 {[%clk 0:02:53]} 7... Be6 {[%clk 0:02:32.9]} 8. Qe2 {[%clk 0:02:51.5]} 8...
d5 {[%clk 0:02:21.9]} 9. exd5 {[%clk 0:02:46.3]} 9... Qxd5 {[%clk 0:02:22.8]}
10. b3 {[%clk 0:02:29.2]} 10... cxb3 {[%clk 0:02:07.3]} 11. Nb5 {[%clk
0:02:21.7]} 11... O-O-O {[%clk 0:01:39.4]} 12. axb3 {[%clk 0:02:16]} 12... Bc5
{[%clk 0:01:32.5]} 13. O-O {[%clk 0:01:49.1]} 13... e4 {[%clk 0:01:27.1]} 14.
Ne1 {[%clk 0:01:38.3]} 14... a6 {[%clk 0:01:25.6]} 15. Na3 {[%clk 0:01:35.1]}
15... Ne5 {[%clk 0:01:23.7]} 16. b4 {[%clk 0:01:17.5]} 16... Bb6 {[%clk
0:01:18.6]} 17. b5 {[%clk 0:01:16.3]} 17... a5 {[%clk 0:01:05.4]} 18. Rb1 {[%clk
0:00:54.2]} 18... Rhe8 {[%clk 0:00:50]} 19. Bb3 {[%clk 0:00:53.3]} 19... Qd6
{[%clk 0:00:49.8]} 20. Nc4 {[%clk 0:00:34.1]} 20... Bxc4 {[%clk 0:00:46.9]} 21.
Bxc4 {[%clk 0:00:33.6]} 21... Qc5 {[%clk 0:00:37]} 22. Ba2 {[%clk 0:00:31]}
22... Bc7 {[%clk 0:00:29.9]} 23. b6 {[%clk 0:00:24.5]} 23... Bb8 {[%clk
0:00:29.4]} 24. Rb5 {[%clk 0:00:23.1]} 24... Qd6 {[%clk 0:00:26.2]} 25. g3
{[%clk 0:00:17.3]} 25... Qc6 {[%clk 0:00:21.2]} 26. Ba3 {[%clk 0:00:10.6]} 26...
Nd3 {[%clk 0:00:19.7]} 27. Nxd3 {[%clk 0:00:09.4]} 27... exd3 {[%clk 0:00:20.6]}
28. Qg4+ {[%clk 0:00:08.9]} 28... Nxg4 {[%clk 0:00:20.1]} 29. hxg4 {[%clk
0:00:07.2]} 29... Qxb5 {[%clk 0:00:19.9]} 0-1

[Event "Betsys MČR v online bleskovém šachu 2021"]
[Site "Chess.com"]
[Date "2021.04.17"]
[Round "5"]
[White "BRNOTEACHER"]
[Black "vit_rosenbaum"]
[Result "0-1"]
[WhiteElo "2356"]
[BlackElo "2234"]
[TimeControl "180+1"]
[EndTime "9:47:07 PDT"]
[Termination "Uživatel vit_rosenbaum zvítězil na čas"]

1. d4 {[%clk 0:03:00.9]} 1... e6 {[%clk 0:03:00]} 2. c4 {[%clk 0:03:01.1]} 2...
c5 {[%clk 0:03:00.5]} 3. d5 {[%clk 0:03:00.6]} 3... exd5 {[%clk 0:03:00.4]} 4.
cxd5 {[%clk 0:03:01.5]} 4... d6 {[%clk 0:03:01]} 5. Nc3 {[%clk 0:03:01.5]} 5...
Nf6 {[%clk 0:03:01.2]} 6. e4 {[%clk 0:03:01.7]} 6... g6 {[%clk 0:03:01.8]} 7. f4
{[%clk 0:03:01.9]} 7... Bg7 {[%clk 0:03:01.8]} 8. Bb5+ {[%clk 0:03:02]} 8...
Nfd7 {[%clk 0:03:01.8]} 9. Bd3 {[%clk 0:03:01.6]} 9... O-O {[%clk 0:03:00]} 10.
Nf3 {[%clk 0:03:00.9]} 10... Na6 {[%clk 0:02:58.6]} 11. O-O {[%clk 0:03:00.3]}
11... Nc7 {[%clk 0:02:55.9]} 12. Be3 {[%clk 0:02:47.9]} 12... Rb8 {[%clk
0:02:50.3]} 13. Qd2 {[%clk 0:02:13]} 13... b5 {[%clk 0:02:41.1]} 14. e5 {[%clk
0:02:09.6]} 14... dxe5 {[%clk 0:02:28.1]} 15. d6 {[%clk 0:02:07.7]} 15... Ne6
{[%clk 0:02:24.5]} 16. f5 {[%clk 0:01:33.7]} 16... Nd4 {[%clk 0:02:18]} 17. Bxd4
{[%clk 0:01:14.7]} 17... cxd4 {[%clk 0:02:01.1]} 18. Nxb5 {[%clk 0:01:14.5]}
18... gxf5 {[%clk 0:01:55.1]} 19. Nxa7 {[%clk 0:00:40.8]} 19... e4 {[%clk
0:01:41.5]} 20. Nc6 {[%clk 0:00:40.3]} 20... Qb6 {[%clk 0:01:41.5]} 21. Ne7+
{[%clk 0:00:32.2]} 21... Kh8 {[%clk 0:01:39.2]} 22. Nxf5 {[%clk 0:00:32.1]}
22... exd3 {[%clk 0:01:31.8]} 23. Nxg7 {[%clk 0:00:23.7]} 23... Kxg7 {[%clk
0:01:31.4]} 24. Qg5+ {[%clk 0:00:23.1]} 24... Kh8 {[%clk 0:01:31.6]} 25. Ne5
{[%clk 0:00:22.6]} 25... f6 {[%clk 0:01:09.7]} 26. Qh6 {[%clk 0:00:15.2]} 26...
Qxd6 {[%clk 0:00:51.8]} 27. Ng6+ {[%clk 0:00:14.8]} 27... Kg8 {[%clk 0:00:51.5]}
28. Nxf8 {[%clk 0:00:12.7]} 28... Qxf8 {[%clk 0:00:51.6]} 29. Qd2 {[%clk
0:00:11.3]} 29... Ne5 {[%clk 0:00:50.4]} 30. Rf4 {[%clk 0:00:09]} 30... Qb4
{[%clk 0:00:39.8]} 31. Qxb4 {[%clk 0:00:04.4]} 31... Rxb4 {[%clk 0:00:39.2]} 32.
b3 {[%clk 0:00:04.5]} 32... f5 {[%clk 0:00:35.5]} 33. Rd1 {[%clk 0:00:01.7]}
33... Kg7 {[%clk 0:00:33.2]} 0-1